fUST/lending_fUST_20250603
["ID","MTS","AMOUNT","RATE_DAILY","PERIOD"]
[363904925,1748917844808,-500.0,0.00021015,2]
[363904926,1748917844817,-500.0,0.00021015,2]
[363904927,1748917844827,-500.0,0.00021015,2]
[363904928,1748917844836,-500.0,0.00021015,2]
[363904929,1748917844845,-882.37572583,0.00021026,2]
[363904930,1748917844854,-1000.0,0.0002106,2]
[363904931,1748917844864,-324.12902412,0.00021094,2]
[363904932,1748917844873,-646.83,0.00021094,2]
[363904933,1748917844883,-649.39,0.00021094,2]
[363904934,1748917844892,-815.64,0.00021094,2]
[363904935,1748917844901,-1571.32,0.00021094,2]
[363904936,1748917844910,-440.0,0.00021095,2]
[363904937,1748917844919,-513.89,0.00021095,2]
[363904938,1748917844929,-576.76,0.00021095,2]
[363904939,1748917844938,-2271.48,0.00021095,2]
[363904940,1748917844948,-582.54,0.00021095,2]
[363904941,1748917845072,-483.51,0.00021095,2]
[363904942,1748917845082,-1052.03,0.00021095,2]
[363904943,1748917845092,-881.31,0.00021095,2]
[363904944,1748917845101,-675.32,0.00021095,2]
[363904945,1748917845111,-1552.34,0.00021095,2]
[363904946,1748917845121,-440.0,0.00021095,2]
[363904947,1748917845130,-640.89,0.00021095,2]
[363904948,1748917845140,-547.92,0.00021095,2]
[363904949,1748917845151,-731.19,0.00021095,2]
[363904950,1748917845160,-440.0,0.00021095,2]
[363904951,1748917845170,-1452.05,0.00021095,2]
[363904952,1748917845180,-1000.0,0.00021159,5]
[363904953,1748917845189,-1067.72,0.000212,2]
[363904954,1748917845199,-1921.1929106,0.0002121,4]
[363904955,1748917845208,-1500.0,0.00021234,2]
[363904956,1748917845218,-1067.72,0.000213,2]
[363904957,1748917845228,-519.53819596,0.000213,2]
[363904958,1748917845237,-353.1243127,0.00021315,2]
[363904959,1748917845246,-646.83,0.00021368,2]
[363904960,1748917845257,-649.39,0.00021368,2]
[363904961,1748917845267,-815.64,0.00021368,2]
[363904962,1748917845277,-1571.32,0.00021368,2]
[363904963,1748917845287,-440.0,0.00021369,2]
[363904964,1748917845298,-513.89,0.00021369,2]
[363904965,1748917845308,-576.76,0.00021369,2]
[363904966,1748917845318,-2271.48,0.00021369,2]
[363904967,1748917845328,-582.54,0.00021369,2]
[363904968,1748917845338,-483.51,0.00021369,2]
[363904969,1748917845348,-1052.03,0.00021369,2]
[363904970,1748917845358,-881.31,0.00021369,2]
[363904971,1748917845367,-675.32,0.00021369,2]
[363904972,1748917845378,-1552.34,0.00021369,2]
[363904973,1748917845388,-440.0,0.00021369,2]
[363904974,1748917845398,-640.89,0.00021369,2]
[363904975,1748917845408,-547.92,0.00021369,2]
[363904976,1748917845419,-731.19,0.00021369,2]
[363904977,1748917845428,-440.0,0.00021369,2]
[363904978,1748917845437,-1452.05,0.00021369,2]
[363904979,1748917845447,-1067.72,0.000214,2]
[363904980,1748917845456,-1921.1929106,0.00021417,5]
[363904981,1748917845466,-1067.72,0.000215,2]
[363904982,1748917845476,-186.0,0.000215,5]
[363904983,1748917845487,-186.0,0.000215,5]
[363904984,1748917845497,-186.0,0.000215,5]
[363904985,1748917845511,-151.0,0.00021528,19]
[363904986,1748917845521,-742.943019,0.0002156,3]
[363904987,1748917845531,-220024.9716,0.00021562,2]
[363904988,1748917845540,-5000.0,0.00021563,2]
[363904989,1748917845550,-1067.72,0.000216,2]
[363904990,1748917845560,-1005.954144,0.000216,2]
[363904991,1748917845572,-1921.1929106,0.00021624,5]
[363904992,1748917845582,-646.83,0.00021642,2]
[363904993,1748917845592,-649.39,0.00021642,2]
[363904994,1748917845602,-815.64,0.00021642,2]
[363904995,1748917845612,-1571.32,0.00021642,2]
[363904996,1748917845622,-168.72366,0.00021643,2]
[363904997,1748917845632,-168.72366,0.00021643,2]
[363904998,1748917845642,-531.09957922,0.00021643,2]
[363904999,1748917845654,-513.89,0.00021643,2]
[363905000,1748917845664,-576.76,0.00021643,2]
[363905001,1748917845674,-2271.48,0.00021643,2]
[363905002,1748917845684,-582.54,0.00021643,2]
[363905003,1748917845694,-483.51,0.00021643,2]
[363905004,1748917845704,-1052.03,0.00021643,2]
[363905005,1748917845713,-881.31,0.00021643,2]
[363905006,1748917845723,-675.32,0.00021643,2]
[363905007,1748917845733,-1552.34,0.00021643,2]
[363905008,1748917845743,-440.0,0.00021643,2]
[363905009,1748917845754,-640.89,0.00021643,2]
[363905010,1748917845764,-547.92,0.00021643,2]
[363905011,1748917845774,-731.19,0.00021643,2]
[363905012,1748917845783,-440.0,0.00021643,2]
[363905013,1748917845793,-1452.05,0.00021643,2]
[363905014,1748917845802,-965.62,0.0002168,2]
[363905015,1748917845812,-1067.72,0.000217,2]
[363905016,1748917845821,-8863.9256349,0.000217,2]
[363905017,1748917845831,-584.829584,0.00021723,2]
[363905018,1748917845840,-584.829584,0.00021723,2]
[363905019,1748917845850,-151.0,0.00021757,21]
[363905020,1748917845859,-297.60904732,0.00021781,2]
[363905021,1748917845869,-2000.0,0.00021782,2]
[363905022,1748917845878,-1067.72,0.000218,2]
[363905023,1748917845887,-186.0,0.000218,6]
[363905024,1748917845897,-186.0,0.000218,6]
[363905025,1748917845906,-186.0,0.000218,6]
[363905026,1748917845915,-500.91417317,0.00021809,2]
[363905027,1748917845925,-500.0,0.00021815,2]
[363905028,1748917845934,-500.0,0.00021815,2]
[363905029,1748917845943,-1921.1929106,0.00021831,6]
[363905030,1748917845953,-1067.72,0.000219,2]
[363905031,1748917845962,-6725.153736,0.00021915,2]
[363905032,1748917845972,-646.83,0.00021916,2]
[363905033,1748917845982,-649.39,0.00021916,2]
[363905034,1748917845992,-815.64,0.00021916,2]
[363905035,1748917846001,-1571.32,0.00021916,2]
[363905036,1748917846011,-203.83567907,0.00021917,2]
[363905037,1748917846021,-500.0,0.00021917,2]
[363905038,1748917846030,-513.89,0.00021917,2]
[363905040,1748917846039,-576.76,0.00021917,2]
[363905042,1748917846049,-2271.48,0.00021917,2]
[363905044,1748917846059,-582.54,0.00021917,2]
[363905045,1748917846068,-483.51,0.00021917,2]
[363905046,1748917846078,-1052.03,0.00021917,2]
[363905048,1748917846088,-881.31,0.00021917,2]
[363905049,1748917846097,-675.32,0.00021917,2]
[363905050,1748917846107,-1552.34,0.00021917,2]
[363905051,1748917846116,-440.0,0.00021917,2]
[363905052,1748917846126,-640.89,0.00021917,2]
[363905053,1748917846136,-547.92,0.00021917,2]
[363905054,1748917846146,-731.19,0.00021917,2]
[363905055,1748917846155,-500.0,0.00021917,2]
[363905056,1748917846165,-500.0,0.00021917,2]
[363905057,1748917846175,-500.0,0.00021917,2]
[363905058,1748917846184,-500.0,0.00021917,2]
[363905059,1748917846194,-500.0,0.00021917,2]
[363905061,1748917846204,-500.0,0.00021917,2]
[363905062,1748917846213,-500.0,0.00021917,2]
[363905063,1748917846223,-500.0,0.00021917,2]
[363905064,1748917846233,-500.0,0.00021917,2]
[363905065,1748917846242,-500.0,0.00021917,2]
[363905066,1748917846252,-504.51139258,0.00021917,2]
[363905068,1748917846262,-440.0,0.00021917,2]
[363905070,1748917846271,-1452.05,0.00021917,2]
[363905072,1748917846281,-150.0,0.00021918,2]
[363905074,1748917846291,-500.0,0.00021918,2]
[363905076,1748917846301,-500.0,0.00021918,2]
[363905078,1748917846311,-500.0,0.00021918,2]
[363905080,1748917846321,-500.0,0.00021918,2]
[363905082,1748917846331,-500.0,0.00021918,2]
[363905083,1748917846342,-500.0,0.00021918,2]
[363905085,1748917846353,-500.0,0.00021918,2]
[363905087,1748917846364,-500.0,0.00021918,2]
[363905089,1748917846375,-500.0,0.00021918,2]
[363905091,1748917846386,-500.0,0.00021918,2]
[363905093,1748917846397,-500.0,0.00021918,2]
[363905094,1748917846407,-500.0,0.00021918,2]
[363905095,1748917846417,-500.0,0.00021918,2]
[363905096,1748917846428,-500.0,0.00021918,2]
[363905097,1748917846438,-500.0,0.00021918,2]
[363905099,1748917846448,-466.25757701,0.00021918,2]
[363905101,1748917846458,-500.0,0.00021918,2]
[363905103,1748917846466,-500.0,0.00021918,2]
[363905105,1748917846477,-500.0,0.00021918,2]
[363905107,1748917846486,-500.0,0.00021918,2]
[363905109,1748917846496,-500.0,0.00021918,2]
[363905110,1748917846508,-500.0,0.00021918,2]
[363905111,1748917846518,-500.0,0.00021918,2]
[363905112,1748917846528,-500.0,0.00021918,2]
[363905113,1748917846538,-500.0,0.00021918,2]
[363905114,1748917846548,-500.0,0.00021918,2]
[363905115,1748917846558,-500.0,0.00021918,2]
[363905116,1748917846569,-500.0,0.00021918,2]
[363905117,1748917846582,-500.0,0.00021918,2]
[363905118,1748917846593,-500.0,0.00021918,2]
[363905120,1748917846602,-500.0,0.00021918,2]
[363905122,1748917846613,-500.0,0.00021918,2]
[363905124,1748917846622,-500.0,0.00021918,2]
[363905127,1748917846631,-500.0,0.00021918,2]
[363905128,1748917846642,-500.0,0.00021918,2]
[363905129,1748917846652,-500.0,0.00021918,2]
[363905130,1748917846661,-500.0,0.00021918,2]
[363905132,1748917846671,-500.0,0.00021918,2]
[363905134,1748917846680,-500.0,0.00021918,2]
[363905135,1748917846690,-500.0,0.00021918,2]
[363905136,1748917846700,-500.0,0.00021918,2]
[363905137,1748917846710,-500.0,0.00021918,2]
[363905138,1748917846720,-500.0,0.00021918,2]
[363905139,1748917846730,-500.0,0.00021918,2]
[363905140,1748917846739,-543.36161708,0.00021918,2]
[363905141,1748917846750,-500.0,0.00021918,2]
[363905142,1748917846762,-500.0,0.00021918,2]
[363905143,1748917846772,-500.0,0.00021918,2]
[363905144,1748917846782,-500.0,0.00021918,2]
[363905145,1748917846792,-500.0,0.00021918,2]
[363905146,1748917846802,-500.0,0.00021918,2]
[363905147,1748917846812,-500.0,0.00021918,2]
[363905148,1748917846822,-500.0,0.00021918,2]
[363905149,1748917846833,-500.0,0.00021918,2]
[363905150,1748917846842,-500.0,0.00021918,2]
[363905151,1748917846852,-500.0,0.00021918,2]
[363905152,1748917846861,-500.0,0.00021918,2]
[363905153,1748917846871,-500.0,0.00021918,2]
[363905154,1748917846881,-500.0,0.00021918,2]
[363905155,1748917846891,-151.0,0.00021986,22]
[363905156,1748917846900,-1067.72,0.00022,7]
[363905157,1748917846909,-1550.15990865,0.00022,2]
[363905158,1748917846919,-3450.0,0.00022,2]
[363905159,1748917846928,-3450.0,0.00022,2]
[363905160,1748917846937,-3450.0,0.00022,2]
[363905161,1748917846946,-3450.0,0.00022,2]
[363905162,1748917846955,-3450.0,0.00022,2]
[363905163,1748917846964,-3450.0,0.00022,2]
[363905164,1748917846975,-3450.0,0.00022,2]
[363905165,1748917846984,-3450.0,0.00022,2]
[363905166,1748917846993,-3450.0,0.00022,2]
[363905167,1748917847002,-151.0,0.00022,7]
[363905168,1748917847014,-2882.7965501,0.00022,2]
[363905169,1748917847022,-151.0,0.00022,7]
[363905170,1748917847030,-7566.0,0.00022,2]
[363905171,1748917847038,-795.234995,0.00022,2]
[363905172,1748917847046,-151.0,0.00022,7]
[363905173,1748917847054,-151.0,0.00022,7]
[363905174,1748917847063,-151.0,0.00022,7]
[363905175,1748917847071,-151.0,0.00022,7]
[363905176,1748917847079,-151.0,0.00022,7]
[363905177,1748917847087,-151.0,0.00022,7]
[363905178,1748917847096,-229.306619,0.00022,7]
[363905179,1748917847105,-229.306619,0.00022,7]
[363905180,1748917847113,-500.0,0.00022,2]
[363905181,1748917847122,-151.0,0.00022,7]
[363905182,1748917847130,-500.0,0.00022,2]
[363905183,1748917847139,-151.0,0.00022,7]
[363905184,1748917847149,-300.71566544,0.00022,4]
[363905185,1748917847161,-151.0,0.00022,7]
[363905186,1748917847170,-164.97696,0.00022,7]
[363905187,1748917847180,-164.97696,0.00022,7]
[363905188,1748917847189,-500.0,0.00022,2]
[363905189,1748917847198,-500.0,0.00022,2]
[363905190,1748917847208,-500.0,0.00022,2]
[363905191,1748917847217,-168.72366,0.00022,7]
[363905192,1748917847227,-168.72366,0.00022,7]
[363905193,1748917847236,-168.72366,0.00022,7]
[363905194,1748917847246,-168.72366,0.00022,7]
[363905195,1748917847256,-584.829584,0.00022,7]
[363905196,1748917847266,-584.829584,0.00022,7]
[363905197,1748917847275,-584.829584,0.00022,7]
[363905198,1748917847284,-584.829584,0.00022,7]
[363905199,1748917847294,-186.0,0.00022,7]
[363905200,1748917847303,-186.0,0.00022,7]
[363905201,1748917847312,-186.0,0.00022,7]
[363905202,1748917847322,-9680.14296365,0.00022,2]
[363905203,1748917847428,-641.00857584,0.00022,2]
[363905204,1748917847487,-492.976,0.0002168,2]
[363905205,1748917847497,-510.30527392,0.00021774,2]
[363905206,1748917847509,-1704.31839265,0.00022,2]
[363905207,1748917847520,-2217.86477015,0.00022,2]
[363905208,1748917847532,-324.97025148,0.00022,2]
[363905209,1748917847663,-1343.85148223,0.00022,2]
[363905210,1748917847676,-12217.81642137,0.00022,2]
[363905211,1748917847689,-386.5212032,0.00022,2]
[363905212,1748917847699,-169.50306797,0.00022,2]
[363905213,1748917847710,-7293.24,0.00022,2]
[363905214,1748917847723,-6.85591813,0.00022,2]
[363905215,1748917847732,-174.0,0.00022,2]
[363905216,1748917847742,-719.48408187,0.00022038,6]
[363905217,1748917847754,-1201.70882873,0.00022038,6]
[363905218,1748917847764,-364.5107659,0.00022055,2]
[363905219,1748917847775,-364.5107659,0.00022055,2]
[363905220,1748917847785,-364.5107659,0.00022055,2]
[363905221,1748917847795,-364.5107659,0.00022055,2]
[363905222,1748917847805,-1067.72,0.000221,2]
[363905223,1748917847815,-160.79519194,0.0002211,2]
[363905224,1748917847825,-202.68270768,0.00022156,2]
[363905225,1748917847838,-797.31729232,0.00022156,2]
[363905226,1748917847848,-646.83,0.0002219,2]
[363905227,1748917847859,-649.39,0.0002219,2]
[363905228,1748917847869,-427.69954493,0.0002219,2]
[363905229,1748917847939,-303.486814,0.00016438,2]
[363905230,1748917847952,-136.513186,0.00016438,2]
[363905231,1748917847962,-405.0,0.0002168,2]
[363905232,1748917847971,-387.94045507,0.0002219,2]
[363905233,1748917847981,-219.44738275,0.0002219,2]
[363905234,1748917847998,-1351.87261725,0.0002219,2]
[363905235,1748917848008,-3428.62135923,0.00022191,2]
[363905236,1748917848128,-440.0,0.00016438,2]
[363905237,1748917848138,-440.0,0.00016712,2]
[363905238,1748917848151,-440.0,0.00016712,2]
[363905239,1748917848162,-458.92,0.00016986,2]
[363905240,1748917848174,-282.06,0.00016986,2]
[363905241,1748917848184,-4576.22584623,0.00022191,2]
[363905242,1748917848194,-513.89,0.00022191,2]
[363905243,1748917848204,-576.76,0.00022191,2]
[363905244,1748917848214,-582.54,0.00022191,2]
[363905245,1748917848224,-483.51,0.00022191,2]
[363905246,1748917848234,-1052.03,0.00022191,2]
[363905247,1748917848243,-881.31,0.00022191,2]
[363905248,1748917848253,-675.32,0.00022191,2]
[363905249,1748917848265,-1552.34,0.00022191,2]
[363905250,1748917848274,-440.0,0.00022191,2]
[363905251,1748917848285,-640.89,0.00022191,2]
[363905252,1748917848295,-547.92,0.00022191,2]
[363905253,1748917848305,-731.19,0.00022191,2]
[363905254,1748917848315,-548.58027583,0.00022191,2]
[363905255,1748917848324,-1452.05,0.00022191,2]
[363905256,1748917848334,-5340.72527768,0.00022192,7]
[363905259,1748918061945,5000.0,0.0001552,2]
[363905260,1748918169458,630.0,0.00024658,120]
[363905262,1748918259200,2402089.3123449,0.00024658,120]
[363905263,1748918316280,2984757.99,0.00021918,60]
[363905264,1748918383159,431.44355752,0.0001552,2]
[363905265,1748918596256,208.374579,0.00015506,2]
[363905267,1748918643707,209.421952,0.00013699,2]
[363905271,1748918724603,248.18151,0.00015505,2]
[363905274,1748918858459,238.38485,0.00015436,2]
[363905288,1748918986839,947.1124434,0.00015505,2]
[363905333,1748919032686,-694.67771338,0.000161,2]
[363905334,1748919032696,-151.0,0.00016428,2]
[363905336,1748919032705,-151.0,0.00016428,2]
[363905338,1748919032715,-151.0,0.00016428,2]
[363905340,1748919032725,-151.0,0.00016428,2]
[363905342,1748919032734,-151.0,0.00016428,2]
[363905344,1748919032744,-151.0,0.00016428,2]
[363905345,1748919032754,-151.0,0.00016428,2]
[363905347,1748919032763,-151.0,0.00016428,2]
[363905349,1748919032774,-151.0,0.00016428,2]
[363905351,1748919032784,-151.0,0.00016428,2]
[363905353,1748919032793,-151.0,0.00016428,2]
[363905354,1748919032804,-151.0,0.00016428,2]
[363905356,1748919032814,-151.0,0.00016428,2]
[363905358,1748919032823,-151.0,0.00016428,2]
[363905360,1748919032833,-151.0,0.00016428,2]
[363905362,1748919032843,-300.0,0.00016434,2]
[363905364,1748919032852,-300.0,0.00016437,2]
[363905365,1748919032861,-300.0,0.00016437,2]
[363905367,1748919032871,-300.0,0.00016437,2]
[363905369,1748919032881,-300.0,0.00016437,2]
[363905371,1748919032891,-1200.0,0.00016437,2]
[363905373,1748919032901,-106.41682958,0.00016438,2]
[363905383,1748919033019,-326.78560577,0.00016438,2]
[363905385,1748919033030,-550.16639752,0.00016438,2]
[363905387,1748919033041,-438.91113516,0.00016438,2]
[363905389,1748919033053,-432.394537,0.00016438,2]
[363905391,1748919033067,-433.54504215,0.00016438,2]
[363905392,1748919033078,-432.64009642,0.00016438,2]
[363905393,1748919033088,-437.38259449,0.00016438,2]
[363905394,1748919033098,-432.97508632,0.00016438,2]
[363905395,1748919033108,-451.84236959,0.00016438,2]
[363905396,1748919033118,-431.54285131,0.00016438,2]
[363905397,1748919033128,-407.19161839,0.00016438,2]
[363905398,1748919033138,-431.30497412,0.00016438,2]
[363905400,1748919033148,-432.80568324,0.00016438,2]
[363905402,1748919033159,-430.0,0.00016438,2]
[363905404,1748919033169,-314.81516653,0.00016438,2]
[363905406,1748919033179,-504.24341828,0.00016438,2]
[363905408,1748919033190,-435.81879667,0.00016438,2]
[363905409,1748919033201,-431.69905809,0.00016438,2]
[363905411,1748919033210,-403.29970671,0.00016438,2]
[363905413,1748919033220,-440.0,0.00016438,2]
[363905415,1748919033230,-433.77450714,0.00016438,2]
[363905417,1748919033240,-433.76097005,0.00016438,2]
[363905418,1748919033250,-430.0,0.00016438,2]
[363905420,1748919033261,-432.65076433,0.00016438,2]
[363905422,1748919033272,-522.33418326,0.00016438,2]
[363905424,1748919033281,-431.6355817,0.00016438,2]
[363905426,1748919033292,-431.85996599,0.00016438,2]
[363905428,1748919033301,-431.73393747,0.00016438,2]
[363905429,1748919033311,-439.29862795,0.00016438,2]
[363905431,1748919033322,-431.4445208,0.00016438,2]
[363905433,1748919033332,-434.98831444,0.00016438,2]
[363905435,1748919033342,-433.03059045,0.00016438,2]
[363905437,1748919033353,-431.73199568,0.00016438,2]
[363905439,1748919033363,-434.32353116,0.00016438,2]
[363905440,1748919033373,-431.65020851,0.00016438,2]
[363905442,1748919033383,-435.43759049,0.00016438,2]
[363905444,1748919033393,-436.14489868,0.00016438,2]
[363905446,1748919033403,-160.14909683,0.00016438,2]
[363905448,1748919033413,-432.08255552,0.00016438,2]
[363905449,1748919033422,-454.42125454,0.00016438,2]
[363905464,1748919033594,-433.15045451,0.00016438,2]
[363905466,1748919033608,-440.0,0.00016438,2]
[363905468,1748919033618,-432.97375289,0.00016438,2]
[363905470,1748919033628,-445.15082353,0.00016438,2]
[363905472,1748919033638,-402.60324651,0.00016438,2]
[363905474,1748919033648,-401.90718294,0.00016438,2]
[363905476,1748919033658,-437.44700746,0.00016438,2]
[363905477,1748919033669,-432.08857395,0.00016438,2]
[363905479,1748919033680,-430.0,0.00016438,2]
[363905481,1748919033690,-440.0,0.00016438,2]
[363905482,1748919033701,-438.73109449,0.00016438,2]
[363905484,1748919033711,-440.78006391,0.00016438,2]
[363905486,1748919033721,-443.14001101,0.00016438,2]
[363905487,1748919033731,-166.86892272,0.00016438,2]
[363905489,1748919033741,-440.91288598,0.00016438,2]
[363905491,1748919033752,-438.56634334,0.00016438,2]
[363905493,1748919033762,-436.17375379,0.00016438,2]
[363905495,1748919033772,-443.13593947,0.00016438,2]
[363905497,1748919033782,-465.8346274,0.00016438,2]
[363905499,1748919033792,-437.0016841,0.00016438,2]
[363905501,1748919033801,-438.14059621,0.00016438,2]
[363905502,1748919033814,-434.67815842,0.00016438,2]
[363905504,1748919033824,-410.94155416,0.00016438,2]
[363905506,1748919033834,-378.25562369,0.00016438,2]
[363905508,1748919033845,-432.82901258,0.00016438,2]
[363905509,1748919033857,-440.0,0.00016438,2]
[363905510,1748919033868,-432.23066284,0.00016438,2]
[363905512,1748919033879,-439.6914674,0.00016438,2]
[363905514,1748919033889,-440.31543154,0.00016438,2]
[363905516,1748919033899,-440.0,0.00016438,2]
[363905518,1748919033911,-120.84256682,0.00016438,2]
[363905569,1748919038575,-319.15743318,0.00016438,2]
[363905570,1748919038584,-93.13817537,0.00016438,2]
[363905571,1748919038595,-343.17593484,0.00016438,2]
[363905572,1748919038605,-439.01557526,0.00016438,2]
[363905573,1748919038614,-440.0,0.00016438,2]
[363905574,1748919038623,-440.0,0.00016438,2]
[363905575,1748919038632,-403.78931813,0.00016438,2]
[363905576,1748919038641,-435.25210393,0.00016438,2]
[363905577,1748919038651,-446.36884952,0.00016438,2]
[363905578,1748919038660,-432.64661378,0.00016438,2]
[363905579,1748919038670,-391.49646705,0.00016438,2]
[363905580,1748919038679,-497.01788176,0.00016438,2]
[363905581,1748919038691,-2.98211824,0.00016438,2]
[363905582,1748919038701,-435.43934407,0.00016438,2]
[363905583,1748919038711,-433.04363748,0.00016438,2]
[363905584,1748919038720,-434.52097798,0.00016438,2]
[363905585,1748919038730,-434.08751566,0.00016438,2]
[363905586,1748919038739,-536.03915903,0.00016438,2]
[363905587,1748919038749,-434.45284184,0.00016438,2]
[363905588,1748919038760,-240.05764255,0.00016438,2]
[363905589,1748919038773,-437.57608525,0.00016438,2]
[363905590,1748919038788,-2.94451968,0.00016438,2]
[363905591,1748919038799,-437.05548032,0.00016438,2]
[363905592,1748919038810,-440.0,0.00016438,2]
[363905593,1748919038820,-405.15625089,0.00016438,2]
[363905594,1748919038830,-440.0,0.00016438,2]
[363905595,1748919038840,-458.78429788,0.00016438,2]
[363905596,1748919038850,-440.90977886,0.00016438,2]
[363905597,1748919038860,-252.37908731,0.00016438,2]
[363905598,1748919038869,-117.92387294,0.00016438,2]
[363905599,1748919038885,-322.07612706,0.00016438,2]
[363905600,1748919038896,-440.0,0.00016438,2]
[363905601,1748919038906,-440.0,0.00016438,2]
[363905602,1748919038915,-430.0,0.00016438,2]
[363905603,1748919038925,-317.69510046,0.00016438,2]
[363905604,1748919038934,-440.0,0.00016438,2]
[363905605,1748919038944,-440.0,0.00016438,2]
[363905606,1748919038954,-440.0,0.00016438,2]
[363905607,1748919038964,-408.04338679,0.00016438,2]
[363905608,1748919038974,-440.0,0.00016438,2]
[363905609,1748919038984,-450.62970672,0.00016438,2]
[363905610,1748919038998,-331.02412366,0.00016438,2]
[363905611,1748919039010,-383.72909074,0.00016438,2]
[363905612,1748919039019,-430.0,0.00016438,2]
[363905613,1748919039029,-406.73778409,0.00016438,2]
[363905614,1748919039039,-440.0,0.00016438,2]
[363905615,1748919039048,-473.64890057,0.00016438,2]
[363905616,1748919039057,-440.0,0.00016438,2]
[363905617,1748919039068,-497.89673747,0.00016438,2]
[363905618,1748919039078,-440.0,0.00016438,2]
[363905619,1748919039088,-440.38130445,0.00016438,2]
[363905620,1748919039097,-440.0,0.00016438,2]
[363905621,1748919039108,-435.22113647,0.00016438,2]
[363905622,1748919039117,-440.0,0.00016438,2]
[363905623,1748919039127,-440.0,0.00016438,2]
[363905624,1748919039136,-440.0,0.00016438,2]
[363905625,1748919039145,-431.76334247,0.00016438,2]
[363905626,1748919039156,-440.0,0.00016438,2]
[363905627,1748919039165,-438.15368252,0.00016438,2]
[363905628,1748919039175,-440.0,0.00016438,2]
[363905629,1748919039184,-383.99391497,0.00016438,2]
[363905630,1748919039193,-440.0,0.00016438,2]
[363905631,1748919039203,-440.0,0.00016438,2]
[363905632,1748919039212,-440.0,0.00016438,2]
[363905633,1748919039222,-440.0,0.00016438,2]
[363905634,1748919039231,-440.0,0.00016438,2]
[363905635,1748919039241,-440.0,0.00016438,2]
[363905636,1748919039251,-420.55686421,0.00016438,2]
[363905637,1748919039260,-440.96973606,0.00016438,2]
[363905638,1748919039270,-495.48107167,0.00016438,2]
[363905639,1748919039280,-440.0,0.00016438,2]
[363905640,1748919039290,-442.68396033,0.00016438,2]
[363905641,1748919039300,-440.0,0.00016438,2]
[363905642,1748919039309,-440.0,0.00016438,2]
[363905643,1748919039321,-558.09,0.00016438,2]
[363905644,1748919039331,-440.0,0.00016438,2]
[363905645,1748919039341,-151.76893638,0.00016438,2]
[363905646,1748919039351,-440.0,0.00016438,2]
[363905647,1748919039364,-404.84829817,0.00016438,2]
[363905648,1748919039377,-440.0,0.00016438,2]
[363905649,1748919039391,-649.25,0.00016438,2]
[363905650,1748919039404,-440.0,0.00016438,2]
[363905651,1748919039417,-440.0,0.00016438,2]
[363905652,1748919039430,-440.0,0.00016438,2]
[363905653,1748919039441,-440.0,0.00016438,2]
[363905654,1748919039452,-454.18647568,0.00016438,2]
[363905655,1748919039464,-440.0,0.00016438,2]
[363905656,1748919039475,-440.0,0.00016438,2]
[363905657,1748919039487,-440.0,0.00016438,2]
[363905658,1748919039500,-440.0,0.00016438,2]
[363905659,1748919039512,-440.0,0.00016438,2]
[363905660,1748919039524,-281.22802622,0.00016438,2]
[363905661,1748919039535,-669.21,0.00016438,2]
[363905662,1748919039548,-440.0,0.00016438,2]
[363905663,1748919039559,-440.0,0.00016438,2]